fUSD/lending_fUSD_20260405
["ID","MTS","AMOUNT","RATE_DAILY","PERIOD"]
[419829433,1775403051241,-210.98153295,0.00013699,2]
[419829434,1775403051251,-500.0,0.00013699,2]
[419829435,1775403051260,-178.25,0.00013699,2]
[419829436,1775403051270,-785.67,0.00013699,2]
[419829437,1775403051279,-162.49,0.000137,2]
[419829438,1775403051288,-500.0,0.00013743,2]
[419829439,1775403051298,-541.89555162,0.00013763,2]
[419829440,1775403051307,-9035.0,0.00013784,2]
[419829441,1775403051318,-3620.0,0.00013788,2]
[419829442,1775403051328,-600.0,0.00013801,2]
[419829443,1775403051337,-291.29,0.00013801,2]
[419829444,1775403051347,-166.66,0.00013836,2]
[419829445,1775403051356,-1000.0,0.00013836,2]
[419829446,1775403051366,-200.0,0.00013836,2]
[419829447,1775403051376,-377.452931,0.00013916,2]
[419829448,1775403051386,-1536.04360649,0.00013926,2]
[419829449,1775403051395,-225.18697532,0.00013926,2]
[419829450,1775403051405,-200.0,0.00013926,2]
[419829451,1775403051416,-745.65223616,0.00013926,2]
[419829452,1775403051426,-194.72792766,0.00013926,2]
[419829453,1775403051435,-200.0,0.00013926,2]
[419829454,1775403051444,-829.12830338,0.00013926,2]
[419829455,1775403051454,-284.74539875,0.00013926,2]
[419829456,1775403051463,-150.0,0.00013969,2]
[419829457,1775403051473,-150.0,0.00013973,2]
[419829458,1775403051483,-150.0,0.00013973,2]
[419829459,1775403051492,-150.0,0.00013973,2]
[419829460,1775403051503,-150.0,0.00013973,2]
[419829461,1775403051512,-150.0,0.00013973,2]
[419829462,1775403051522,-150.0,0.00013973,2]
[419829463,1775403051531,-166.66,0.00013973,2]
[419829464,1775403051542,-785.67,0.00013973,2]
[419829465,1775403051551,-72823.1506587,0.00013996,2]
[419829466,1775403051561,-1500.0,0.00014,2]
[419829467,1775403051571,-158.0,0.00014,2]
[419829468,1775403051580,-158.0,0.00014,2]
[419829469,1775403051590,-67968.26455455,0.00014018,2]
[419829470,1775403051600,-1249.03,0.00014048,2]
[419829471,1775403051610,-1122.33,0.00014048,2]
[419829472,1775403051621,-673.65,0.00014048,2]
[419829473,1775403051630,-2463.48,0.000141,2]
[419829474,1775403051640,-333.79,0.000141,2]
[419829475,1775403051650,-166.66,0.0001411,2]
[419829476,1775403051660,-500.0,0.00014115,2]
[419829477,1775403051669,-60000.0,0.00014115,2]
[419829478,1775403051682,-1600.0,0.00014173,2]
[419829479,1775403051697,-150.0,0.00014243,2]
[419829480,1775403051707,-503.0,0.00014245,2]
[419829481,1775403051717,-166.66,0.00014247,2]
[419829482,1775403051726,-150.0,0.00014247,2]
[419829483,1775403051738,-150.0,0.00014247,2]
[419829484,1775403051748,-150.0,0.00014247,2]
[419829485,1775403051758,-150.0,0.00014247,2]
[419829486,1775403051768,-150.0,0.00014247,2]
[419829487,1775403051777,-150.0,0.00014247,2]
[419829488,1775403051787,-1000.0,0.00014247,2]
[419829489,1775403051797,-1000.0,0.00014247,2]
[419829490,1775403051807,-1000.0,0.00014247,2]
[419829491,1775403051817,-1000.0,0.00014247,2]
[419829492,1775403051827,-1000.0,0.00014247,2]
[419829493,1775403051837,-1000.0,0.00014247,2]
[419829494,1775403051847,-1000.0,0.00014247,2]
[419829495,1775403051856,-1000.0,0.00014247,2]
[419829496,1775403051866,-1000.0,0.00014247,2]
[419829497,1775403051876,-1000.0,0.00014247,2]
[419829498,1775403051886,-1000.0,0.00014247,2]
[419829499,1775403051895,-730.09729929,0.00014247,2]
[419829500,1775403051906,-189.74788311,0.00014247,2]
[419829501,1775403051916,-1000.0,0.00014247,2]
[419829502,1775403051927,-1000.0,0.00014247,2]
[419829503,1775403051938,-1000.0,0.00014247,2]
[419829504,1775403051948,-861.43877969,0.00014247,2]
[419829505,1775403051959,-1000.0,0.00014247,2]
[419829506,1775403051969,-627.70930647,0.00014247,2]
[419829507,1775403051979,-500.76237275,0.00014247,2]
[419829508,1775403051988,-308.03873246,0.00014247,2]
[419829509,1775403051998,-1000.0,0.00014247,2]
[419829510,1775403052009,-1000.0,0.00014247,2]
[419829511,1775403052019,-1000.0,0.00014247,2]
[419829512,1775403052029,-1000.0,0.00014247,2]
[419829513,1775403052039,-1000.0,0.00014247,2]
[419829514,1775403052049,-180.00096908,0.00014247,2]
[419829515,1775403052058,-1000.0,0.00014247,2]
[419829516,1775403052068,-1000.0,0.00014247,2]
[419829517,1775403052078,-1000.0,0.00014247,2]
[419829518,1775403052088,-743.80429884,0.00014247,2]
[419829519,1775403052098,-1000.0,0.00014247,2]
[419829520,1775403052108,-1000.0,0.00014247,2]
[419829521,1775403052117,-1000.0,0.00014247,2]
[419829522,1775403052127,-1000.0,0.00014247,2]
[419829523,1775403052137,-1000.0,0.00014247,2]
[419829524,1775403052146,-1000.0,0.00014247,2]
[419829525,1775403052156,-500.99241895,0.00014247,2]
[419829526,1775403052166,-1000.0,0.00014247,2]
[419829527,1775403052176,-1000.0,0.00014247,2]
[419829528,1775403052198,-500.0,0.00014247,2]
[419829529,1775403052209,-790.32775663,0.00014247,2]
[419829530,1775403052220,-1000.0,0.00014247,2]
[419829531,1775403052237,-1000.0,0.00014247,2]
[419829532,1775403052248,-1000.0,0.00014247,2]
[419829533,1775403052258,-1000.0,0.00014247,2]
[419829534,1775403052268,-1000.0,0.00014247,2]
[419829535,1775403052278,-1000.0,0.00014247,2]
[419829536,1775403052289,-797.22,0.00014247,2]
[419829537,1775403052299,-734.88782897,0.00014298,2]
[419829538,1775403052308,-2000.0,0.00014323,2]
[419829539,1775403052318,-166.66,0.00014384,2]
[419829540,1775403052328,-200.0,0.00014384,2]
[419829541,1775403052339,-10405.80591116,0.0001439,2]
[419829542,1775403052349,-150.0,0.000144,2]
[419829543,1775403052359,-150.0,0.000144,2]
[419829544,1775403052369,-150.0,0.000144,2]
[419829545,1775403052378,-150.0,0.000144,2]
[419829546,1775403052388,-150.0,0.000144,2]
[419829547,1775403052397,-150.0,0.000144,2]
[419829548,1775403052407,-150.0,0.000144,2]
[419829549,1775403052417,-150.0,0.000144,2]
[419829550,1775403052430,-150.0,0.000144,2]
[419829551,1775403052440,-150.0,0.000144,2]
[419829552,1775403052451,-150.0,0.000144,2]
[419829553,1775403052461,-150.0,0.000144,2]
[419829554,1775403052471,-150.0,0.000144,2]
[419829555,1775403052481,-150.0,0.000144,2]
[419829556,1775403052491,-150.0,0.00014417,2]
[419829557,1775403052501,-150.0,0.0001442,2]
[419829558,1775403052511,-150.0,0.00014422,2]
[419829559,1775403052520,-150.0,0.00014427,2]
[419829560,1775403052530,-150.0,0.00014428,2]
[419829561,1775403052541,-150.0,0.00014428,2]
[419829562,1775403052551,-150.0,0.00014434,2]
[419829563,1775403052560,-1000.0,0.00014437,2]
[419829564,1775403052570,-150.0,0.0001444,2]
[419829565,1775403052580,-150.0,0.00014444,2]
[419829566,1775403052590,-150.0,0.0001445,2]
[419829567,1775403052600,-150.0,0.00014451,2]
[419829568,1775403052611,-150.0,0.00014454,2]
[419829569,1775403052622,-150.0,0.00014455,2]
[419829570,1775403052631,-150.0,0.00014456,2]
[419829571,1775403052641,-150.0,0.0001446,2]
[419829572,1775403052651,-150.0,0.00014462,2]
[419829573,1775403052661,-150.0,0.00014466,2]
[419829574,1775403052671,-150.0,0.00014467,2]
[419829575,1775403052685,-1592.87721993,0.00014474,2]
[419829576,1775403052695,-233.51889341,0.00014474,2]
[419829577,1775403052706,-200.0,0.00014474,2]
[419829578,1775403052716,-773.2413689,0.00014474,2]
[419829579,1775403052726,-201.93286099,0.00014474,2]
[419829580,1775403052736,-200.0,0.00014474,2]
[419829581,1775403052746,-859.80605061,0.00014474,2]
[419829582,1775403052755,-1000.0,0.00014478,2]
[419829583,1775403052765,-150.0,0.0001448,2]
[419829584,1775403052775,-150.0,0.00014481,2]
[419829585,1775403052785,-150.0,0.00014483,2]
[419829586,1775403052795,-150.0,0.00014484,2]
[419829587,1775403052805,-150.0,0.00014484,2]
[419829588,1775403052814,-150.0,0.00014488,2]
[419829589,1775403052824,-150.0,0.00014489,2]
[419829590,1775403052834,-255.1558191,0.00014491,4]
[419829591,1775403052844,-150.0,0.00014491,4]
[419829592,1775403052855,-245.6863,0.000145,2]
[419829593,1775403052864,-150.0,0.000145,2]
[419829594,1775403052874,-150.0,0.000145,2]
[419829595,1775403052884,-150.0,0.00014501,2]
[419829596,1775403052894,-150.0,0.00014508,2]
[419829597,1775403052903,-150.0,0.0001451,2]
[419829598,1775403052912,-150.0,0.0001451,2]
[419829599,1775403052922,-150.0,0.00014512,2]
[419829600,1775403052935,-287.27615736,0.00014517,2]
[419829601,1775403052946,-150.0,0.00014518,2]
[419829602,1775403052956,-150.0,0.0001452,2]
[419829603,1775403052966,-150.0,0.00014523,2]
[419829604,1775403052976,-158.07,0.0001453,2]
[419829605,1775403052986,-150.0,0.00014532,2]
[419829606,1775403052997,-150.0,0.00014535,2]
[419829607,1775403053007,-150.0,0.00014536,2]
[419829608,1775403053017,-150.0,0.00014538,2]
[419829609,1775403053027,-150.0,0.0001454,2]
[419829610,1775403053038,-150.0,0.0001454,2]
[419829611,1775403053049,-158.07,0.00014548,2]
[419829612,1775403053059,-150.0,0.0001455,2]
[419829613,1775403053069,-150.0,0.00014552,2]
[419829614,1775403053079,-150.0,0.00014553,2]
[419829615,1775403053089,-150.0,0.0001456,2]
[419829616,1775403053099,-150.0,0.00014563,2]
[419829617,1775403053109,-150.0,0.00014566,2]
[419829618,1775403053119,-158.07,0.00014566,2]
[419829619,1775403053129,-150.0,0.00014568,2]
[419829620,1775403053138,-150.0,0.00014568,2]
[419829621,1775403053148,-396.13,0.00014575,2]
[419829622,1775403053158,-150.0,0.00014575,2]
[419829623,1775403053169,-150.0,0.00014578,2]
[419829624,1775403053180,-150.0,0.0001458,2]
[419829625,1775403053190,-10891.57,0.00014583,2]
[419829626,1775403053200,-150.0,0.00014585,2]
[419829627,1775403053210,-150.0,0.00014585,2]
[419829628,1775403053220,-150.0,0.0001459,2]
[419829629,1775403053230,-396.13,0.0001459,2]
[419829630,1775403053240,-150.0,0.00014593,2]
[419829631,1775403053250,-150.0,0.00014596,2]
[419829632,1775403053261,-150.0,0.00014597,2]
[419829633,1775403053272,-150.0,0.000146,2]
[419829634,1775403053282,-150.0,0.000146,2]
[419829635,1775403053292,-150.0,0.00014602,2]
[419829636,1775403053302,-500.0,0.00014603,2]
[419829637,1775403053312,-725.46,0.00014606,2]
[419829638,1775403053321,-1772.17,0.00014606,2]
[419829639,1775403053331,-806.66,0.00014606,2]
[419829640,1775403053341,-1268.28,0.00014606,2]
[419829641,1775403053352,-396.12375685,0.00014606,2]
[419829642,1775403053362,-150.0,0.00014617,2]
[419829643,1775403053372,-150.0,0.00014619,2]
[419829644,1775403053382,-150.0,0.00014619,2]
[419829645,1775403053393,-150.0,0.0001462,2]
[419829646,1775403053404,-150.0,0.00014621,2]
[419829647,1775403053414,-150.0,0.00014625,2]
[419829648,1775403053424,-150.0,0.00014636,2]
[419829649,1775403053438,-150.0,0.0001464,2]
[419829650,1775403053448,-150.0,0.00014641,2]
[419829651,1775403053458,-150.0,0.00014644,2]
[419829652,1775403053468,-150.0,0.00014646,2]
[419829653,1775403053479,-150.0,0.00014648,2]
[419829654,1775403053489,-150.0,0.0001465,2]
[419829655,1775403053499,-150.0,0.00014653,2]
[419829656,1775403053509,-150.0,0.00014653,2]
[419829657,1775403053518,-150.0,0.0001466,2]
[419829658,1775403053528,-150.0,0.00014663,2]
[419829659,1775403053538,-150.0,0.00014667,2]
[419829660,1775403053547,-150.0,0.00014667,2]
[419829661,1775403053557,-150.0,0.00014669,2]
[419829662,1775403053567,-150.0,0.00014671,2]
[419829663,1775403053576,-150.0,0.00014676,2]
[419829664,1775403053586,-150.0,0.0001468,2]
[419829665,1775403053596,-150.0,0.00014681,2]
[419829666,1775403053606,-1056.0,0.00014682,4]
[419829667,1775403053615,-150.0,0.00014685,2]
[419829668,1775403053625,-150.0,0.00014686,2]
[419829669,1775403053635,-150.0,0.00014698,2]
[419829670,1775403053645,-150.0,0.000147,2]
[419829671,1775403053655,-150.0,0.000147,2]
[419829672,1775403053665,-150.0,0.00014703,2]
[419829673,1775403053675,-150.0,0.00014703,2]
[419829674,1775403053690,-150.0,0.00014707,2]
[419829675,1775403053700,-150.0,0.00014708,2]
[419829676,1775403053710,-150.0,0.00014709,2]
[419829677,1775403053720,-1249.03,0.00014719,2]
[419829678,1775403053730,-1122.33,0.00014719,2]
[419829679,1775403053740,-673.65,0.00014719,2]
[419829680,1775403053751,-150.0,0.0001472,2]
[419829681,1775403053761,-150.0,0.0001472,2]
[419829682,1775403053771,-150.0,0.00014725,2]
[419829683,1775403053781,-150.0,0.00014729,2]
[419829684,1775403053791,-150.0,0.00014731,2]
[419829685,1775403053801,-150.0,0.00014737,2]
[419829686,1775403053811,-150.0,0.00014737,2]
[419829687,1775403053821,-150.0,0.0001474,2]
[419829688,1775403053831,-150.0,0.0001475,2]
[419829689,1775403053841,-150.0,0.00014751,2]
[419829690,1775403053851,-150.0,0.00014753,2]
[419829691,1775403053863,-150.0,0.00014754,2]
[419829692,1775403053873,-1000.0,0.00014755,2]
[419829693,1775403053883,-150.0,0.00014756,2]
[419829694,1775403053893,-150.0,0.00014759,2]
[419829695,1775403053904,-150.0,0.0001476,2]
[419829696,1775403053914,-150.0,0.00014765,2]
[419829697,1775403053925,-150.0,0.00014769,2]
[419829698,1775403053937,-150.0,0.00014771,2]
[419829699,1775403053948,-150.0,0.00014773,2]
[419829700,1775403053959,-150.0,0.0001478,2]
[419829701,1775403053970,-150.0,0.0001478,2]
[419829702,1775403053980,-150.0,0.00014786,2]
[419829703,1775403053991,-150.0,0.00014787,2]
[419829704,1775403054001,-150.0,0.00014793,2]
[419829705,1775403054294,-1233.74,0.00014794,2]
[419829706,1775403054304,-537.2,0.00014794,2]
[419829707,1775403054314,-737.59,0.00014794,2]
[419829708,1775403054324,-500.0,0.00014794,2]
[419829709,1775403054333,-150.0,0.00014795,2]
[419829710,1775403054343,-1500.0,0.00014795,2]
[419829711,1775403054354,-1500.0,0.00014795,2]
[419829712,1775403054364,-1500.0,0.00014795,2]
[419829713,1775403054374,-1318.06583411,0.00014795,2]
[419829714,1775403054383,-1503.24663382,0.00014795,2]
[419829715,1775403054393,-1500.0,0.00014795,2]
[419829716,1775403054403,-1500.0,0.00014795,2]
[419829717,1775403054412,-1500.0,0.00014795,2]
[419829718,1775403054423,-1500.0,0.00014795,2]
[419829719,1775403054434,-1500.0,0.00014795,2]
[419829720,1775403054443,-1500.0,0.00014795,2]
[419829721,1775403054453,-1500.0,0.00014795,2]
[419829722,1775403054465,-953.31303788,0.00014795,2]
[419829723,1775403054475,-1500.0,0.00014795,2]
[419829724,1775403054485,-1500.0,0.00014795,2]
[419829725,1775403054494,-1500.0,0.00014795,2]
[419829726,1775403054503,-1500.0,0.00014795,2]
[419829727,1775403054513,-1500.0,0.00014795,2]
[419829728,1775403054523,-1500.0,0.00014795,2]
[419829729,1775403054533,-186.27125357,0.00014795,2]
[419829730,1775403054543,-1500.0,0.00014795,2]
[419829731,1775403054552,-1500.0,0.00014795,2]
[419829732,1775403054563,-1227.692277,0.00014795,2]
[419829733,1775403054572,-1500.0,0.00014795,2]
[419829734,1775403054582,-1500.0,0.00014795,2]
[419829735,1775403054591,-1500.0,0.00014795,2]
[419829736,1775403054601,-1500.0,0.00014795,2]
[419829737,1775403054611,-1500.0,0.00014795,2]
[419829738,1775403054622,-1500.0,0.00014795,2]
[419829739,1775403054632,-1500.0,0.00014795,2]
[419829740,1775403054642,-1500.0,0.00014795,2]
[419829741,1775403054652,-1500.0,0.00014795,2]
[419829742,1775403054661,-1500.0,0.00014795,2]
[419829743,1775403054670,-418.3764967,0.00014795,2]
[419829744,1775403054682,-1500.0,0.00014795,2]
[419829745,1775403054692,-1500.0,0.00014795,2]
[419829746,1775403054702,-553.41835149,0.00014795,2]
[419829747,1775403054711,-500.0,0.00014799,2]
[419829748,1775403054722,-150.0,0.000148,2]
[419829749,1775403054732,-150.0,0.000148,2]
[419829750,1775403054742,-150.0,0.000148,2]
[419829751,1775403054753,-150.0,0.00014804,2]
[419829752,1775403054762,-150.0,0.00014807,2]
[419829753,1775403054772,-150.0,0.00014814,2]
[419829754,1775403054782,-150.0,0.00014816,2]
[419829755,1775403054792,-150.0,0.0001482,2]
[419829756,1775403054802,-150.0,0.00014821,2]
[419829757,1775403054812,-150.0,0.00014821,2]
[419829758,1775403054823,-150.0,0.00014831,2]
[419829759,1775403054832,-1000.0,0.00014833,2]
[419829760,1775403054842,-150.0,0.00014834,2]
[419829761,1775403054852,-150.0,0.00014838,2]
[419829762,1775403054861,-150.0,0.00014838,2]
[419829763,1775403054871,-150.0,0.0001484,2]
[419829764,1775403054882,-150.0,0.00014841,2]
[419829765,1775403054892,-150.0,0.00014844,2]
[419829766,1775403054902,-150.0,0.00014849,2]
[419829767,1775403054911,-150.0,0.0001485,2]
[419829768,1775403054920,-15609.82,0.00014853,2]
[419829769,1775403054932,-2979.4,0.00014853,2]
[419829770,1775403054941,-6742.52,0.00014853,2]
[419829771,1775403054951,-28985.77,0.00014853,2]
[419829772,1775403054960,-2855.05,0.00014853,2]
[419829773,1775403054970,-150.0,0.00014855,2]
[419829774,1775403054980,-150.0,0.0001486,2]
[419829775,1775403054990,-150.0,0.0001486,2]
[419829776,1775403055000,-150.0,0.00014861,2]
[419829777,1775403055010,-3137.0,0.00014866,5]
[419829778,1775403055020,-2780.0,0.00014866,5]
[419829779,1775403055030,-150.0,0.00014869,2]
[419829780,1775403055041,-150.0,0.00014872,2]
[419829781,1775403055051,-150.0,0.00014877,2]
[419829782,1775403055061,-150.0,0.0001488,2]
[419829783,1775403055071,-150.0,0.00014882,2]
[419829784,1775403055081,-150.0,0.00014888,2]
[419829785,1775403055090,-150.0,0.00014888,2]
[419829786,1775403055100,-150.0,0.00014892,2]
[419829787,1775403055109,-150.0,0.00014897,2]
[419829788,1775403055119,-72823.1506587,0.00014898,2]
[419829789,1775403055129,-150.0,0.000149,2]
[419829790,1775403055139,-229.30734682,0.000149,2]
[419829791,1775403055148,-150.0,0.000149,2]
[419829792,1775403055158,-229.3073468,0.000149,2]
[419829793,1775403055168,-229.3073468,0.000149,2]
[419829794,1775403055181,-150.0,0.00014904,2]
[419829795,1775403055190,-150.0,0.00014905,2]
[419829796,1775403055200,-150.0,0.00014905,2]
[419829797,1775403055210,-289.56339563,0.00014908,2]
[419829798,1775403055220,-1000.0,0.00014909,2]
[419829799,1775403055229,-67968.26455455,0.00014909,2]
[419829800,1775403055239,-150.0,0.00014915,2]
[419829801,1775403055249,-151.0,0.0001492,2]
[419829802,1775403055259,-151.0,0.0001492,2]
[419829803,1775403055268,-151.0,0.0001492,2]
[419829804,1775403055278,-151.0,0.0001492,2]
[419829805,1775403055287,-150.0,0.0001492,2]
[419829806,1775403055296,-164.77602582,0.0001492,2]
[419829807,1775403055305,-150.0,0.00014922,2]
[419829808,1775403055315,-150.0,0.00014924,2]
[419829809,1775403055325,-150.0,0.00014926,2]
[419829810,1775403055334,-150.0,0.00014933,2]
[419829811,1775403055344,-150.0,0.00014933,2]
[419829812,1775403055353,-150.0,0.00014933,2]
[419829813,1775403055363,-150.0,0.00014933,2]
[419829814,1775403055373,-150.0,0.00014939,2]
[419829815,1775403055382,-150.0,0.0001494,2]
[419829816,1775403055392,-150.0,0.00014942,2]
[419829817,1775403055403,-150.0,0.00014948,2]
[419829818,1775403055413,-150.0,0.0001495,2]
[419829819,1775403055423,-150.0,0.00014952,2]
[419829820,1775403055436,-1000.0,0.00014952,2]
[419829821,1775403055446,-150.0,0.00014954,2]
[419829822,1775403055455,-150.0,0.00014956,2]
[419829823,1775403055464,-150.0,0.0001496,2]
[419829824,1775403055474,-150.0,0.00014961,2]
[419829825,1775403055484,-150.0,0.00014969,2]
[419829826,1775403055494,-150.0,0.0001497,2]
[419829827,1775403055504,-150.0,0.00014973,2]
[419829828,1775403055516,-150.0,0.00014979,2]
[419829829,1775403055525,-150.0,0.0001498,2]
[419829830,1775403055535,-1000.0,0.00014986,2]
[419829831,1775403055545,-150.0,0.00014989,2]
[419829832,1775403055554,-150.0,0.00014989,2]
[419829833,1775403055564,-150.0,0.00014992,2]
[419829834,1775403055574,-150.0,0.00014997,2]
[419829835,1775403055585,-3004.0,0.00015,2]
[419829836,1775403055594,-2067.27601646,0.00015,2]
[419829837,1775403055605,-8047.93487487,0.00015,2]
[419829838,1775403055616,-300.0,0.00015,2]
[419829839,1775403055626,-158.0,0.00015,2]
[419829840,1775403055636,-158.0,0.00015,2]
[419829841,1775403055645,-151.0,0.00015,2]
[419829842,1775403055655,-151.0,0.00015,2]
[419829843,1775403055665,-150.0,0.00015,2]
[419829844,1775403055675,-150.0,0.00015,2]
[419829845,1775403055688,-150.0,0.00015006,2]
[419829846,1775403055698,-150.0,0.00015007,2]
[419829847,1775403055707,-150.0,0.00015014,2]
[419829848,1775403055717,-150.0,0.00015015,2]
[419829849,1775403055727,-500.0,0.00015015,2]
[419829850,1775403055736,-2000.0,0.00015015,2]
[419829851,1775403055746,-150.0,0.00015018,2]
[419829852,1775403055756,-150.0,0.0001502,2]
[419829853,1775403055765,-1651.81367706,0.00015022,2]
[419829854,1775403055775,-301.04884516,0.00015022,2]
[419829855,1775403055784,-200.0,0.00015022,2]
[419829856,1775403055794,-245.70032162,0.00015022,2]
[419829857,1775403055803,-209.40437684,0.00015022,2]
[419829858,1775403055812,-200.0,0.00015022,2]
[419829859,1775403055821,-891.61887448,0.00015022,2]
[419829860,1775403055831,-150.0,0.00015022,2]
[419829861,1775403055841,-150.0,0.00015023,2]
[419829862,1775403055852,-150.0,0.00015024,2]
[419829863,1775403055862,-1479.0,0.0001503,5]
[419829864,1775403055872,-189.3816593,0.00015031,5]
[419829865,1775403055882,-150.0,0.00015034,2]
[419829866,1775403055892,-150.0,0.00015036,2]
[419829867,1775403055902,-150.0,0.0001504,2]
[419829868,1775403055911,-150.0,0.0001504,2]
[419829869,1775403055920,-150.0,0.00015046,2]
[419829870,1775403055930,-150.0,0.0001505,2]
[419829871,1775403055939,-150.0,0.00015051,2]
[419829872,1775403055949,-150.0,0.00015057,2]
[419829873,1775403055959,-150.0,0.00015058,2]
[419829874,1775403055968,-150.0,0.0001506,2]
[419829875,1775403055978,-150.0,0.00015062,2]
[419829876,1775403055987,-900.0,0.00015068,2]
[419829877,1775403055997,-800.0,0.00015068,2]
[419829878,1775403056007,-1000.0,0.00015072,2]
[419829879,1775403056016,-150.0,0.00015074,2]
[419829880,1775403056026,-150.0,0.00015074,2]
[419829881,1775403056035,-150.0,0.00015077,2]
[419829882,1775403056044,-150.0,0.00015078,2]
[419829883,1775403056059,-150.0,0.00015079,2]
[419829884,1775403056068,-150.0,0.0001508,2]
[419829885,1775403056078,-150.0,0.0001509,2]
[419829886,1775403056087,-150.0,0.00015091,2]
[419829887,1775403056097,-150.0,0.000151,2]
[419829888,1775403056107,-150.0,0.000151,2]
[419829889,1775403056117,-150.0,0.00015101,2]
[419829890,1775403056126,-150.0,0.00015102,2]
[419829891,1775403056135,-150.0,0.00015105,2]
[419829892,1775403056144,-150.0,0.00015107,2]
[419829893,1775403056153,-150.0,0.00015111,2]
[419829894,1775403056162,-212.81685563,0.00015117,2]
[419829895,1775403056172,-150.0,0.00015117,2]
[419829896,1775403056184,-150.0,0.0001512,2]
[419829897,1775403056193,-150.0,0.00015123,2]
[419829898,1775403056202,-150.0,0.00015124,2]
[419829899,1775403056212,-150.0,0.0001513,2]
[419829900,1775403056222,-150.0,0.00015132,2]
[419829901,1775403056231,-150.0,0.00015138,2]
[419829902,1775403056242,-150.0,0.0001514,2]
[419829903,1775403056252,-150.0,0.00015141,2]
[419829904,1775403056264,-194.59345971,0.00015143,2]
[419829905,1775403056274,-150.0,0.00015145,2]
[419829906,1775403056284,-150.0,0.00015145,2]
[419829907,1775403056293,-150.0,0.0001515,2]
[419829908,1775403056303,-150.0,0.00015158,2]
[419829909,1775403056312,-150.0,0.00015158,2]
[419829910,1775403056322,-150.0,0.00015159,2]
[419829911,1775403056332,-150.0,0.0001516,2]
[419829912,1775403056342,-12649.0,0.00015163,2]
[419829913,1775403056352,-6155.0,0.00015165,2]
[419829914,1775403056361,-150.0,0.00015167,2]
[419829915,1775403056372,-150.0,0.00015172,2]
[419829916,1775403056382,-150.0,0.00015175,2]
[419829917,1775403056392,-150.0,0.0001518,2]
[419829918,1775403056407,-150.0,0.00015186,2]
[419829919,1775403056418,-150.0,0.00015186,2]
[419829920,1775403056430,-150.0,0.00015189,2]
[419829921,1775403056439,-150.0,0.00015192,2]
[419829922,1775403056448,-150.0,0.00015195,2]
[419829923,1775403056458,-150.0,0.000152,2]
[419829924,1775403056467,-150.0,0.000152,2]
[419829925,1775403056477,-150.0,0.000152,2]
[419829926,1775403056487,-150.0,0.000152,2]
[419829927,1775403056496,-150.0,0.000152,2]
[419829928,1775403056506,-150.0,0.000152,2]
[419829929,1775403056515,-150.0,0.000152,2]
[419829930,1775403056527,-150.0,0.000152,2]
[419829931,1775403056538,-150.0,0.000152,2]
[419829932,1775403056547,-10000.0,0.00015205,2]